{"text_format":"3","workbook":"xlsx","n_sheets":4,"sheets":["Start","Månedlig budsjettrapport","Månedlige utgifter","Ekstra data"],"not_rendered":{"charts":1,"defined_names":4,"pivot_tables":2},"read":"whole","date_system":"1900"}

{"sheet":"Start","index":0,"n_rows":8,"n_cols":2,"rows_kept":8}
[null,"OM DENNE MALEN"]
[null,"Bruk denne arbeidsboken til å holde orden på utgiftene og opprette familiebudsjett."]
[null,"Legg inn forventede og faktiske inntekter fra ulike kilder i regnearket Månedlig budsjettrapport, og forventede og faktiske beløp brukt for ulike kategorier i regnearket Månedlige utgifter."]
[null,"Forventet og faktisk saldo samt differanse beregnes automatisk, og diagram for budsjettsammendrag og budsjettoversikt oppdateres i regnearket Månedlig budsjettrapport."]
[null,"Du kan endre eller legge inn en ny kategori i en tabell i regnearket Ekstra data."]
[null,"Merk: "]
[null,"Flere instruksjoner har blitt oppgitt i kolonne A i regnearket MÅNEDLIG BUDSJETTRAPPORT, og i celle A1 i regnearkene MÅNEDLIGE UTGIFTER og EKSTRA DATA. Denne teksten er skjult med hensikt. Hvis du vil fjerne teksten, merker du kolonne A eller celle A1 og deretter SLETT. Hvis du vil vise teksten, merker du kolonne A eller celle A1 og endrer deretter skriftfarge."]
[null,"Hvis du vil lære mer om tabeller, trykk på SKIFT og deretter på F10 i en tabell. Velg alternativet TABELL, og velg deretter ALTERNATIV TEKST. Hvis du vil ha en pivottabell, trykk på SKIFT og deretter på F10 i en tabell, velg ALTERNATIVER FOR PIVOTTABELL, og velg deretter fanen ALTERNATIV TEKST."]

{"sheet":"Månedlig budsjettrapport","index":1,"n_rows":34,"n_cols":14,"rows_kept":34,"merged":[[0,1,0,4],[0,5,0,7],[0,12,0,13],[1,9,5,13],[2,2,2,5],[3,2,3,5],[4,2,4,5],[7,1,10,1],[7,5,10,5],[7,6,10,6],[8,9,31,9],[12,1,16,1],[12,5,16,5],[12,6,16,6],[19,1,34,6]]}
["Opprett en månedlig budsjettrapport i dette regnearket. Tittelen på dette regnearket finnes i cellen til høyre, og undertittelen finnes i celle J1. Merk celle F1 for å gå til regnearket Månedlige utgifter. Andre nyttige instruksjoner om hvordan du bruker dette regnearket finnes i cellene i denne kolonnen.","Budsjettoversikt",{"$nulls":3},"Månedlige utgifter",{"$nulls":3},"Budsjettsammendrag",null,null,"Én enkelt, grønnfarget hvetestengel finnes i denne cellen."]
["Saldo-etiketten finnes i cellen til høyre. Pivottabell-slicere til å filtrere tabelldataene finnes i cellene J2 til N6. Hold nede CTRL for å velge flere kategorier.","Saldo",{"$nulls":7},"Kategori-slicer til å filtrere pivottabellen nedenfor etter valgt kategori, er i denne cellen."]
["Etiketten Forventet saldo finnes i cellen til høyre. Forventet saldo beregnes automatisk i celle G3.","Forventet saldo","(Forventede minus utgifter)",{"$nulls":3},{"$f":"D17-SUM(BudgetDetails[Forventede kostnader])","v":{"v":1585,"d":"kr 1,585"}}]
["Etiketten Faktisk saldo finnes i cellen til høyre. Faktisk saldo beregnes automatisk i celle G4.","Faktisk saldo ","(Faktiske minus utgifter)",{"$nulls":3},{"$f":"D11-SUM(BudgetDetails[Faktiske kostnader])","v":{"v":1740,"d":"kr 1,740"}}]
["Etiketten Differanse finnes i cellen til høyre. Differanse beregnes automatisk i celle G5. Neste instruksjon finnes i celle A7.","Differanse","(Faktiske minus forventede)",{"$nulls":3},{"$f":"G4-G3","v":{"v":155,"d":"kr 155"}}]
[]
["Etiketten Inntekter finnes i cellen til høyre, etiketten Utgifter i celle F7, og Tips for budsjettsammendrag i celle J7.","Inntekter",{"$nulls":3},"Utgifter",{"$nulls":3},"Merk pivottabellen under og velg deretter Oppdater på Analyser-fanen for å oppdatere."]
["Etiketten Faktiske inntekter finnes i cellen til høyre og etiketten Faktiske utgifter finnes i celle F8. Skriv inn inntekt 1 i celle D8. Faktiske utgifter beregnes automatisk i celle G8.","FAKTISK","Inntekt 1",{"v":5800,"d":"kr 5,800"},null,"FAKTISK",{"$f":"SUM(BudgetDetails[Faktiske kostnader])","v":{"v":7860,"d":"kr 7,860"}}]
["Skriv inn inntekt 2 i celle D9. Bildet finnes i celle J9. Pivottabell starter i celle K9. Hvis du vil oppdater pivottabellen, velg Oppdater på Analyse-fanen.",null,"Inntekt 2",{"v":2300,"d":"kr 2,300"},{"$nulls":5},"Bildet er i denne cellen.","Kategori","Forventede kostnader ","Faktiske kostnader ","Differanse "]
["Skriv inn ekstrainntekt i celle D10.",null,"Ekstrainntekt",{"v":1500,"d":"kr 1,500"},{"$nulls":6},"Barn",{"v":140,"d":"kr 140"},{"v":140,"d":"kr 140"},{"v":0,"d":"kr 0"}]
["Etiketten Total inntekt finnes i celle C11, og totale inntekter beregnes automatisk i celle D11. Neste instruksjon finnes i celle A13.",null,"Totale inntekter",{"$f":"SUM(D8:D10)","v":{"v":9600,"d":"kr 9,600"}}]
[{"$nulls":10},"Bolig",{"v":2830,"d":"kr 2,830"},{"v":2702,"d":"kr 2,702"},{"v":128,"d":"kr 128"}]
["Etiketten Forventede inntekter finnes i cellen til høyre og etiketten Forventede utgifter finnes i celle F13. Forventede utgifter beregnes automatisk i celle G13.","FORVENTET",{"$nulls":3},"FORVENTET",{"$f":"SUM(BudgetDetails[Forventede kostnader])","v":{"v":7915,"d":"kr 7,915"}}]
["Skriv inn forventet inntekt 1 i celle D14.",null,"Inntekt 1",{"v":6000,"d":"kr 6,000"},{"$nulls":6},"Forsikring",{"v":900,"d":"kr 900"},{"v":900,"d":"kr 900"},{"v":0,"d":"kr 0"}]
["Skriv inn forventet inntekt 2 i celle D15.",null,"Inntekt 2",{"v":1000,"d":"kr 1,000"}]
["Skriv inn ekstrainntekt i celle D16.",null,"Ekstrainntekt",{"v":2500,"d":"kr 2,500"},{"$nulls":6},"Gaver og veldedighet",{"v":100,"d":"kr 100"},{"v":125,"d":"kr 125"},{"v":-25,"d":"-kr 25"}]
["Etiketten Totale inntekter finnes i celle C17, og totale inntekter beregnes automatisk i celle D17. Neste instruksjon finnes i celle A20.",null,"Totale inntekter",{"$f":"SUM(D14:D16)","v":{"v":9500,"d":"kr 9,500"}}]
[{"$nulls":10},"Kjæledyr",{"v":170,"d":"kr 170"},{"v":100,"d":"kr 100"},{"v":70,"d":"kr 70"}]
[]
["Sektordiagram som viser prosentvise utgifter etter kategori, i cellen til høyre.","Sektordiagram som viser prosentvise utgifter etter kategori, i denne cellen.",{"$nulls":8},"Lån",{"v":200,"d":"kr 200"},{"v":200,"d":"kr 200"},{"v":0,"d":"kr 0"}]
[]
[{"$nulls":10},"Mat",{"v":1100,"d":"kr 1,100"},{"v":1320,"d":"kr 1,320"},{"v":-220,"d":"-kr 220"}]
[]
[{"$nulls":10},"Personlig pleie",{"v":150,"d":"kr 150"},{"v":140,"d":"kr 140"},{"v":10,"d":"kr 10"}]
[]
[{"$nulls":10},"Skatter og avgifter",{"v":300,"d":"kr 300"},{"v":300,"d":"kr 300"},{"v":0,"d":"kr 0"}]
[]
[{"$nulls":10},"Sparing eller investering",{"v":200,"d":"kr 200"},{"v":200,"d":"kr 200"},{"v":0,"d":"kr 0"}]
[]
[{"$nulls":10},"Transport",{"v":1425,"d":"kr 1,425"},{"v":1375,"d":"kr 1,375"},{"v":50,"d":"kr 50"}]
[]
[{"$nulls":10},"Underholdning",{"v":400,"d":"kr 400"},{"v":358,"d":"kr 358"},{"v":42,"d":"kr 42"}]
[]
[{"$nulls":10},"Grand Total",{"v":7915,"d":"kr 7,915"},{"v":7860,"d":"kr 7,860"},{"v":55,"d":"kr 55"}]

{"sheet":"Månedlige utgifter","index":2,"n_rows":62,"n_cols":7,"rows_kept":62,"merged":[[0,1,0,4],[0,5,0,6]]}
["Beregn månedlige utgifter i dette regnearket. Tittelen på dette regnearket finnes i cellen til høyre Merk celle F1 for å gå til regnearket Månedlig budsjettrapport.","Månedlige utgifter",{"$nulls":3},"Månedlig budsjettrapport"]
[" Skriv inn data i tabellen Budsjettdetaljer, som starter i cellen til høyre.","Beskrivelse","Kategori","Forventede kostnader","Faktiske kostnader","Differanse","Oversikt over faktiske kostnader"]
[null,"Fritidsaktiviteter","Barn",{"v":40,"d":"kr 40"},{"v":40,"d":"kr 40"},{"$f":"BudgetDetails[[#This Row],[Forventede kostnader]]-BudgetDetails[[#This Row],[Faktiske kostnader]]","v":{"v":0,"d":"kr 0"}},{"$f":"BudgetDetails[[#This Row],[Faktiske kostnader]]","v":{"v":40,"d":"kr 40"}}]
[null,"Medisinsk","Barn",null,null,{"$f":"BudgetDetails[[#This Row],[Forventede kostnader]]-BudgetDetails[[#This Row],[Faktiske kostnader]]","v":{"v":0,"d":"kr 0"}},{"$f":"BudgetDetails[[#This Row],[Faktiske kostnader]]","v":{"v":0,"d":"kr 0"}}]
[null,"Skoleutstyr","Barn",null,null,{"$f":"BudgetDetails[[#This Row],[Forventede kostnader]]-BudgetDetails[[#This Row],[Faktiske kostnader]]","v":{"v":0,"d":"kr 0"}},{"$f":"BudgetDetails[[#This Row],[Faktiske kostnader]]","v":{"v":0,"d":"kr 0"}}]
[null,"Skoleundervisning","Barn",{"v":100,"d":"kr 100"},{"v":100,"d":"kr 100"},{"$f":"BudgetDetails[[#This Row],[Forventede kostnader]]-BudgetDetails[[#This Row],[Faktiske kostnader]]","v":{"v":0,"d":"kr 0"}},{"$f":"BudgetDetails[[#This Row],[Faktiske kostnader]]","v":{"v":100,"d":"kr 100"}}]
[null,"Konserter","Underholdning",{"v":50,"d":"kr 50"},{"v":40,"d":"kr 40"},{"$f":"BudgetDetails[[#This Row],[Forventede kostnader]]-BudgetDetails[[#This Row],[Faktiske kostnader]]","v":{"v":10,"d":"kr 10"}},{"$f":"BudgetDetails[[#This Row],[Faktiske kostnader]]","v":{"v":40,"d":"kr 40"}}]
[null,"Teater","Underholdning",{"v":200,"d":"kr 200"},{"v":150,"d":"kr 150"},{"$f":"BudgetDetails[[#This Row],[Forventede kostnader]]-BudgetDetails[[#This Row],[Faktiske kostnader]]","v":{"v":50,"d":"kr 50"}},{"$f":"BudgetDetails[[#This Row],[Faktiske kostnader]]","v":{"v":150,"d":"kr 150"}}]
[null,"Filmer","Underholdning",{"v":50,"d":"kr 50"},{"v":28,"d":"kr 28"},{"$f":"BudgetDetails[[#This Row],[Forventede kostnader]]-BudgetDetails[[#This Row],[Faktiske kostnader]]","v":{"v":22,"d":"kr 22"}},{"$f":"BudgetDetails[[#This Row],[Faktiske kostnader]]","v":{"v":28,"d":"kr 28"}}]
[null,"Musikk (CD-er, nedlastinger og så videre)","Underholdning",{"v":50,"d":"kr 50"},{"v":30,"d":"kr 30"},{"$f":"BudgetDetails[[#This Row],[Forventede kostnader]]-BudgetDetails[[#This Row],[Faktiske kostnader]]","v":{"v":20,"d":"kr 20"}},{"$f":"BudgetDetails[[#This Row],[Faktiske kostnader]]","v":{"v":30,"d":"kr 30"}}]
[null,"Sportsarrangementer","Underholdning",{"v":0,"d":"kr 0"},{"v":40,"d":"kr 40"},{"$f":"BudgetDetails[[#This Row],[Forventede kostnader]]-BudgetDetails[[#This Row],[Faktiske kostnader]]","v":{"v":-40,"d":"-kr 40"}},{"$f":"BudgetDetails[[#This Row],[Faktiske kostnader]]","v":{"v":40,"d":"kr 40"}}]
[null,"Video/DVD (kjøp)","Underholdning",{"v":20,"d":"kr 20"},{"v":50,"d":"kr 50"},{"$f":"BudgetDetails[[#This Row],[Forventede kostnader]]-BudgetDetails[[#This Row],[Faktiske kostnader]]","v":{"v":-30,"d":"-kr 30"}},{"$f":"BudgetDetails[[#This Row],[Faktiske kostnader]]","v":{"v":50,"d":"kr 50"}}]
[null,"Video/DVD (leie)","Underholdning",{"v":30,"d":"kr 30"},{"v":20,"d":"kr 20"},{"$f":"BudgetDetails[[#This Row],[Forventede kostnader]]-BudgetDetails[[#This Row],[Faktiske kostnader]]","v":{"v":10,"d":"kr 10"}},{"$f":"BudgetDetails[[#This Row],[Faktiske kostnader]]","v":{"v":20,"d":"kr 20"}}]
[null,"Spise ute","Mat",{"v":1000,"d":"kr 1,000"},{"v":1200,"d":"kr 1,200"},{"$f":"BudgetDetails[[#This Row],[Forventede kostnader]]-BudgetDetails[[#This Row],[Faktiske kostnader]]","v":{"v":-200,"d":"-kr 200"}},{"$f":"BudgetDetails[[#This Row],[Faktiske kostnader]]","v":{"v":1200,"d":"kr 1,200"}}]
[null,"Dagligvarer","Mat",{"v":100,"d":"kr 100"},{"v":120,"d":"kr 120"},{"$f":"BudgetDetails[[#This Row],[Forventede kostnader]]-BudgetDetails[[#This Row],[Faktiske kostnader]]","v":{"v":-20,"d":"-kr 20"}},{"$f":"BudgetDetails[[#This Row],[Faktiske kostnader]]","v":{"v":120,"d":"kr 120"}}]
[null,"Veldedighet 1","Gaver og veldedighet",{"v":75,"d":"kr 75"},{"v":100,"d":"kr 100"},{"$f":"BudgetDetails[[#This Row],[Forventede kostnader]]-BudgetDetails[[#This Row],[Faktiske kostnader]]","v":{"v":-25,"d":"-kr 25"}},{"$f":"BudgetDetails[[#This Row],[Faktiske kostnader]]","v":{"v":100,"d":"kr 100"}}]
[null,"Veldedighet 2","Gaver og veldedighet",{"v":25,"d":"kr 25"},{"v":25,"d":"kr 25"},{"$f":"BudgetDetails[[#This Row],[Forventede kostnader]]-BudgetDetails[[#This Row],[Faktiske kostnader]]","v":{"v":0,"d":"kr 0"}},{"$f":"BudgetDetails[[#This Row],[Faktiske kostnader]]","v":{"v":25,"d":"kr 25"}}]
[null,"Gave 1","Gaver og veldedighet",null,null,{"$f":"BudgetDetails[[#This Row],[Forventede kostnader]]-BudgetDetails[[#This Row],[Faktiske kostnader]]","v":{"v":0,"d":"kr 0"}},{"$f":"BudgetDetails[[#This Row],[Faktiske kostnader]]","v":{"v":0,"d":"kr 0"}}]
[null,"Gave 2","Gaver og veldedighet",null,null,{"$f":"BudgetDetails[[#This Row],[Forventede kostnader]]-BudgetDetails[[#This Row],[Faktiske kostnader]]","v":{"v":0,"d":"kr 0"}},{"$f":"BudgetDetails[[#This Row],[Faktiske kostnader]]","v":{"v":0,"d":"kr 0"}}]
[null,"Kabel/satellitt","Bolig",{"v":100,"d":"kr 100"},{"v":100,"d":"kr 100"},{"$f":"BudgetDetails[[#This Row],[Forventede kostnader]]-BudgetDetails[[#This Row],[Faktiske kostnader]]","v":{"v":0,"d":"kr 0"}},{"$f":"BudgetDetails[[#This Row],[Faktiske kostnader]]","v":{"v":100,"d":"kr 100"}}]
[null,"Strøm","Bolig",{"v":45,"d":"kr 45"},{"v":50,"d":"kr 50"},{"$f":"BudgetDetails[[#This Row],[Forventede kostnader]]-BudgetDetails[[#This Row],[Faktiske kostnader]]","v":{"v":-5,"d":"-kr 5"}},{"$f":"BudgetDetails[[#This Row],[Faktiske kostnader]]","v":{"v":50,"d":"kr 50"}}]
[null,"Bensin","Bolig",{"v":300,"d":"kr 300"},{"v":400,"d":"kr 400"},{"$f":"BudgetDetails[[#This Row],[Forventede kostnader]]-BudgetDetails[[#This Row],[Faktiske kostnader]]","v":{"v":-100,"d":"-kr 100"}},{"$f":"BudgetDetails[[#This Row],[Faktiske kostnader]]","v":{"v":400,"d":"kr 400"}}]
[null,"Rengjøringstjenester","Bolig",{"v":200,"d":"kr 200"},null,{"$f":"BudgetDetails[[#This Row],[Forventede kostnader]]-BudgetDetails[[#This Row],[Faktiske kostnader]]","v":{"v":200,"d":"kr 200"}},{"$f":"BudgetDetails[[#This Row],[Faktiske kostnader]]","v":{"v":0,"d":"kr 0"}}]
[null,"Vedlikehold","Bolig",{"v":200,"d":"kr 200"},{"v":150,"d":"kr 150"},{"$f":"BudgetDetails[[#This Row],[Forventede kostnader]]-BudgetDetails[[#This Row],[Faktiske kostnader]]","v":{"v":50,"d":"kr 50"}},{"$f":"BudgetDetails[[#This Row],[Faktiske kostnader]]","v":{"v":150,"d":"kr 150"}}]
[null,"Boliglån eller husleie","Bolig",{"v":1700,"d":"kr 1,700"},{"v":1700,"d":"kr 1,700"},{"$f":"BudgetDetails[[#This Row],[Forventede kostnader]]-BudgetDetails[[#This Row],[Faktiske kostnader]]","v":{"v":0,"d":"kr 0"}},{"$f":"BudgetDetails[[#This Row],[Faktiske kostnader]]","v":{"v":1700,"d":"kr 1,700"}}]
[null,"Naturgass/olje","Bolig",null,null,{"$f":"BudgetDetails[[#This Row],[Forventede kostnader]]-BudgetDetails[[#This Row],[Faktiske kostnader]]","v":{"v":0,"d":"kr 0"}},{"$f":"BudgetDetails[[#This Row],[Faktiske kostnader]]","v":{"v":0,"d":"kr 0"}}]
[null,"Internettjenester","Bolig",{"v":100,"d":"kr 100"},{"v":100,"d":"kr 100"},{"$f":"BudgetDetails[[#This Row],[Forventede kostnader]]-BudgetDetails[[#This Row],[Faktiske kostnader]]","v":{"v":0,"d":"kr 0"}},{"$f":"BudgetDetails[[#This Row],[Faktiske kostnader]]","v":{"v":100,"d":"kr 100"}}]
[null,"Telefon (mobil)","Bolig",{"v":60,"d":"kr 60"},{"v":60,"d":"kr 60"},{"$f":"BudgetDetails[[#This Row],[Forventede kostnader]]-BudgetDetails[[#This Row],[Faktiske kostnader]]","v":{"v":0,"d":"kr 0"}},{"$f":"BudgetDetails[[#This Row],[Faktiske kostnader]]","v":{"v":60,"d":"kr 60"}}]
[null,"Telefon (hjem)","Bolig",{"v":35,"d":"kr 35"},{"v":39,"d":"kr 39"},{"$f":"BudgetDetails[[#This Row],[Forventede kostnader]]-BudgetDetails[[#This Row],[Faktiske kostnader]]","v":{"v":-4,"d":"-kr 4"}},{"$f":"BudgetDetails[[#This Row],[Faktiske kostnader]]","v":{"v":39,"d":"kr 39"}}]
[null,"Utstyr","Bolig",{"v":40,"d":"kr 40"},{"v":55,"d":"kr 55"},{"$f":"BudgetDetails[[#This Row],[Forventede kostnader]]-BudgetDetails[[#This Row],[Faktiske kostnader]]","v":{"v":-15,"d":"-kr 15"}},{"$f":"BudgetDetails[[#This Row],[Faktiske kostnader]]","v":{"v":55,"d":"kr 55"}}]
[null,"Søppeltømming og resirkulering","Bolig",{"v":25,"d":"kr 25"},{"v":22,"d":"kr 22"},{"$f":"BudgetDetails[[#This Row],[Forventede kostnader]]-BudgetDetails[[#This Row],[Faktiske kostnader]]","v":{"v":3,"d":"kr 3"}},{"$f":"BudgetDetails[[#This Row],[Faktiske kostnader]]","v":{"v":22,"d":"kr 22"}}]
[null,"Vann og kloakk","Bolig",{"v":25,"d":"kr 25"},{"v":26,"d":"kr 26"},{"$f":"BudgetDetails[[#This Row],[Forventede kostnader]]-BudgetDetails[[#This Row],[Faktiske kostnader]]","v":{"v":-1,"d":"-kr 1"}},{"$f":"BudgetDetails[[#This Row],[Faktiske kostnader]]","v":{"v":26,"d":"kr 26"}}]
[null,"Helse","Forsikring",{"v":400,"d":"kr 400"},{"v":400,"d":"kr 400"},{"$f":"BudgetDetails[[#This Row],[Forventede kostnader]]-BudgetDetails[[#This Row],[Faktiske kostnader]]","v":{"v":0,"d":"kr 0"}},{"$f":"BudgetDetails[[#This Row],[Faktiske kostnader]]","v":{"v":400,"d":"kr 400"}}]
[null,"Hjem","Forsikring",{"v":400,"d":"kr 400"},{"v":400,"d":"kr 400"},{"$f":"BudgetDetails[[#This Row],[Forventede kostnader]]-BudgetDetails[[#This Row],[Faktiske kostnader]]","v":{"v":0,"d":"kr 0"}},{"$f":"BudgetDetails[[#This Row],[Faktiske kostnader]]","v":{"v":400,"d":"kr 400"}}]
[null,"Liv","Forsikring",{"v":100,"d":"kr 100"},{"v":100,"d":"kr 100"},{"$f":"BudgetDetails[[#This Row],[Forventede kostnader]]-BudgetDetails[[#This Row],[Faktiske kostnader]]","v":{"v":0,"d":"kr 0"}},{"$f":"BudgetDetails[[#This Row],[Faktiske kostnader]]","v":{"v":100,"d":"kr 100"}}]
[null,"Kredittkort 1","Lån",{"v":200,"d":"kr 200"},{"v":200,"d":"kr 200"},{"$f":"BudgetDetails[[#This Row],[Forventede kostnader]]-BudgetDetails[[#This Row],[Faktiske kostnader]]","v":{"v":0,"d":"kr 0"}},{"$f":"BudgetDetails[[#This Row],[Faktiske kostnader]]","v":{"v":200,"d":"kr 200"}}]
[null,"Kredittkort 2","Lån",null,null,{"$f":"BudgetDetails[[#This Row],[Forventede kostnader]]-BudgetDetails[[#This Row],[Faktiske kostnader]]","v":{"v":0,"d":"kr 0"}},{"$f":"BudgetDetails[[#This Row],[Faktiske kostnader]]","v":{"v":0,"d":"kr 0"}}]
[null,"Kredittkort 3","Lån",null,null,{"$f":"BudgetDetails[[#This Row],[Forventede kostnader]]-BudgetDetails[[#This Row],[Faktiske kostnader]]","v":{"v":0,"d":"kr 0"}},{"$f":"BudgetDetails[[#This Row],[Faktiske kostnader]]","v":{"v":0,"d":"kr 0"}}]
[null,"Personlig","Lån",null,null,{"$f":"BudgetDetails[[#This Row],[Forventede kostnader]]-BudgetDetails[[#This Row],[Faktiske kostnader]]","v":{"v":0,"d":"kr 0"}},{"$f":"BudgetDetails[[#This Row],[Faktiske kostnader]]","v":{"v":0,"d":"kr 0"}}]
[null,"Student","Lån",null,null,{"$f":"BudgetDetails[[#This Row],[Forventede kostnader]]-BudgetDetails[[#This Row],[Faktiske kostnader]]","v":{"v":0,"d":"kr 0"}},{"$f":"BudgetDetails[[#This Row],[Faktiske kostnader]]","v":{"v":0,"d":"kr 0"}}]
[null,"Klær","Personlig pleie",{"v":150,"d":"kr 150"},{"v":140,"d":"kr 140"},{"$f":"BudgetDetails[[#This Row],[Forventede kostnader]]-BudgetDetails[[#This Row],[Faktiske kostnader]]","v":{"v":10,"d":"kr 10"}},{"$f":"BudgetDetails[[#This Row],[Faktiske kostnader]]","v":{"v":140,"d":"kr 140"}}]
[null,"Rens av klær","Personlig pleie",null,null,{"$f":"BudgetDetails[[#This Row],[Forventede kostnader]]-BudgetDetails[[#This Row],[Faktiske kostnader]]","v":{"v":0,"d":"kr 0"}},{"$f":"BudgetDetails[[#This Row],[Faktiske kostnader]]","v":{"v":0,"d":"kr 0"}}]
[null,"Hår/negler","Personlig pleie",null,null,{"$f":"BudgetDetails[[#This Row],[Forventede kostnader]]-BudgetDetails[[#This Row],[Faktiske kostnader]]","v":{"v":0,"d":"kr 0"}},{"$f":"BudgetDetails[[#This Row],[Faktiske kostnader]]","v":{"v":0,"d":"kr 0"}}]
[null,"Treningsstudio","Personlig pleie",null,null,{"$f":"BudgetDetails[[#This Row],[Forventede kostnader]]-BudgetDetails[[#This Row],[Faktiske kostnader]]","v":{"v":0,"d":"kr 0"}},{"$f":"BudgetDetails[[#This Row],[Faktiske kostnader]]","v":{"v":0,"d":"kr 0"}}]
[null,"Medisinsk","Personlig pleie",null,null,{"$f":"BudgetDetails[[#This Row],[Forventede kostnader]]-BudgetDetails[[#This Row],[Faktiske kostnader]]","v":{"v":0,"d":"kr 0"}},{"$f":"BudgetDetails[[#This Row],[Faktiske kostnader]]","v":{"v":0,"d":"kr 0"}}]
[null,"Mat","Kjæledyr",{"v":150,"d":"kr 150"},{"v":75,"d":"kr 75"},{"$f":"BudgetDetails[[#This Row],[Forventede kostnader]]-BudgetDetails[[#This Row],[Faktiske kostnader]]","v":{"v":75,"d":"kr 75"}},{"$f":"BudgetDetails[[#This Row],[Faktiske kostnader]]","v":{"v":75,"d":"kr 75"}}]
[null,"Pleie","Kjæledyr",{"v":20,"d":"kr 20"},{"v":25,"d":"kr 25"},{"$f":"BudgetDetails[[#This Row],[Forventede kostnader]]-BudgetDetails[[#This Row],[Faktiske kostnader]]","v":{"v":-5,"d":"-kr 5"}},{"$f":"BudgetDetails[[#This Row],[Faktiske kostnader]]","v":{"v":25,"d":"kr 25"}}]
[null,"Medisinsk","Kjæledyr",null,null,{"$f":"BudgetDetails[[#This Row],[Forventede kostnader]]-BudgetDetails[[#This Row],[Faktiske kostnader]]","v":{"v":0,"d":"kr 0"}},{"$f":"BudgetDetails[[#This Row],[Faktiske kostnader]]","v":{"v":0,"d":"kr 0"}}]
[null,"Leker","Kjæledyr",null,null,{"$f":"BudgetDetails[[#This Row],[Forventede kostnader]]-BudgetDetails[[#This Row],[Faktiske kostnader]]","v":{"v":0,"d":"kr 0"}},{"$f":"BudgetDetails[[#This Row],[Faktiske kostnader]]","v":{"v":0,"d":"kr 0"}}]
[null,"Investeringskonto","Sparing eller investering",{"v":200,"d":"kr 200"},{"v":200,"d":"kr 200"},{"$f":"BudgetDetails[[#This Row],[Forventede kostnader]]-BudgetDetails[[#This Row],[Faktiske kostnader]]","v":{"v":0,"d":"kr 0"}},{"$f":"BudgetDetails[[#This Row],[Faktiske kostnader]]","v":{"v":200,"d":"kr 200"}}]
[null,"Pensjonskonto","Sparing eller investering",null,null,{"$f":"BudgetDetails[[#This Row],[Forventede kostnader]]-BudgetDetails[[#This Row],[Faktiske kostnader]]","v":{"v":0,"d":"kr 0"}},{"$f":"BudgetDetails[[#This Row],[Faktiske kostnader]]","v":{"v":0,"d":"kr 0"}}]
[null,"Føderal","Skatter og avgifter",{"v":300,"d":"kr 300"},{"v":300,"d":"kr 300"},{"$f":"BudgetDetails[[#This Row],[Forventede kostnader]]-BudgetDetails[[#This Row],[Faktiske kostnader]]","v":{"v":0,"d":"kr 0"}},{"$f":"BudgetDetails[[#This Row],[Faktiske kostnader]]","v":{"v":300,"d":"kr 300"}}]
[null,"Lokal","Skatter og avgifter",null,null,{"$f":"BudgetDetails[[#This Row],[Forventede kostnader]]-BudgetDetails[[#This Row],[Faktiske kostnader]]","v":{"v":0,"d":"kr 0"}},{"$f":"BudgetDetails[[#This Row],[Faktiske kostnader]]","v":{"v":0,"d":"kr 0"}}]
[null,"Delstat","Skatter og avgifter",null,null,{"$f":"BudgetDetails[[#This Row],[Forventede kostnader]]-BudgetDetails[[#This Row],[Faktiske kostnader]]","v":{"v":0,"d":"kr 0"}},{"$f":"BudgetDetails[[#This Row],[Faktiske kostnader]]","v":{"v":0,"d":"kr 0"}}]
[null,"Buss og taxi","Transport",{"v":100,"d":"kr 100"},{"v":150,"d":"kr 150"},{"$f":"BudgetDetails[[#This Row],[Forventede kostnader]]-BudgetDetails[[#This Row],[Faktiske kostnader]]","v":{"v":-50,"d":"-kr 50"}},{"$f":"BudgetDetails[[#This Row],[Faktiske kostnader]]","v":{"v":150,"d":"kr 150"}}]
[null,"Drivstoff","Transport",{"v":450,"d":"kr 450"},{"v":400,"d":"kr 400"},{"$f":"BudgetDetails[[#This Row],[Forventede kostnader]]-BudgetDetails[[#This Row],[Faktiske kostnader]]","v":{"v":50,"d":"kr 50"}},{"$f":"BudgetDetails[[#This Row],[Faktiske kostnader]]","v":{"v":400,"d":"kr 400"}}]
[null,"Forsikring","Transport",{"v":300,"d":"kr 300"},{"v":300,"d":"kr 300"},{"$f":"BudgetDetails[[#This Row],[Forventede kostnader]]-BudgetDetails[[#This Row],[Faktiske kostnader]]","v":{"v":0,"d":"kr 0"}},{"$f":"BudgetDetails[[#This Row],[Faktiske kostnader]]","v":{"v":300,"d":"kr 300"}}]
[null,"Lisensiering ","Transport",{"v":25,"d":"kr 25"},{"v":25,"d":"kr 25"},{"$f":"BudgetDetails[[#This Row],[Forventede kostnader]]-BudgetDetails[[#This Row],[Faktiske kostnader]]","v":{"v":0,"d":"kr 0"}},{"$f":"BudgetDetails[[#This Row],[Faktiske kostnader]]","v":{"v":25,"d":"kr 25"}}]
[null,"Vedlikehold","Transport",{"v":100,"d":"kr 100"},{"v":50,"d":"kr 50"},{"$f":"BudgetDetails[[#This Row],[Forventede kostnader]]-BudgetDetails[[#This Row],[Faktiske kostnader]]","v":{"v":50,"d":"kr 50"}},{"$f":"BudgetDetails[[#This Row],[Faktiske kostnader]]","v":{"v":50,"d":"kr 50"}}]
[null,"Parkeringsavgifter","Transport",null,null,{"$f":"BudgetDetails[[#This Row],[Forventede kostnader]]-BudgetDetails[[#This Row],[Faktiske kostnader]]","v":{"v":0,"d":"kr 0"}},{"$f":"BudgetDetails[[#This Row],[Faktiske kostnader]]","v":{"v":0,"d":"kr 0"}}]
[null,"Billån","Transport",{"v":450,"d":"kr 450"},{"v":450,"d":"kr 450"},{"$f":"BudgetDetails[[#This Row],[Forventede kostnader]]-BudgetDetails[[#This Row],[Faktiske kostnader]]","v":{"v":0,"d":"kr 0"}},{"$f":"BudgetDetails[[#This Row],[Faktiske kostnader]]","v":{"v":450,"d":"kr 450"}}]
[null,"Totalt",null,{"$f":"SUBTOTAL(109,BudgetDetails[Forventede kostnader])","v":{"v":7915,"d":"kr 7,915"}},{"$f":"SUBTOTAL(109,BudgetDetails[Faktiske kostnader])","v":{"v":7860,"d":"kr 7,860"}},{"$f":"SUBTOTAL(109,BudgetDetails[Differanse])","v":{"v":55,"d":"kr 55"}}]

{"sheet":"Ekstra data","index":3,"n_rows":15,"n_cols":5,"rows_kept":15}
["Bruk dette regnearket til å endre rullegardinlisten for kolonnen Kategori, i tabellen Budsjettdetaljer i regnearket Månedlige utgifter. Du kan endre eller skrive inn en ny kategori i Oppslagsliste for Budsjettkategori, som starter i celle E2. Pivottabell som er koblet til diagrammet Budsjettoversikt i regnearket Månedlig budsjettrapport starter i celle B2.","Pivottabell for diagrammet Budsjettoversikt",null,null,"Oppslagsliste for kategorien Budsjettdetaljer"]
[null,"Kategori","Kostnader",null,"Oppslagsliste for Budsjettkategori"]
[null,"Barn",{"v":140,"d":"kr 140"},null,"Barn"]
[null,"Underholdning",{"v":358,"d":"kr 358"},null,"Underholdning"]
[null,"Mat",{"v":1320,"d":"kr 1,320"},null,"Mat"]
[null,"Gaver og veldedighet",{"v":125,"d":"kr 125"},null,"Gaver og veldedighet"]
[null,"Bolig",{"v":2702,"d":"kr 2,702"},null,"Bolig"]
[null,"Forsikring",{"v":900,"d":"kr 900"},null,"Forsikring"]
[null,"Lån",{"v":200,"d":"kr 200"},null,"Lån"]
[null,"Personlig pleie",{"v":140,"d":"kr 140"},null,"Personlig pleie"]
[null,"Kjæledyr",{"v":100,"d":"kr 100"},null,"Kjæledyr"]
[null,"Sparing eller investering",{"v":200,"d":"kr 200"},null,"Sparing eller investering"]
[null,"Skatter og avgifter",{"v":300,"d":"kr 300"},null,"Skatter og avgifter"]
[null,"Transport",{"v":1375,"d":"kr 1,375"},null,"Transport"]
[null,"Grand Total",{"v":7860,"d":"kr 7,860"}]